{"text_format":"1","workbook":"xlsx","n_sheets":6,"sheets":["DEMANDE","ANALYSE","Formulaire_réclamation","Exemple","LISTES","INFOS"],"not_rendered":{"charts":0,"images":0,"macros":1,"external_links":0,"defined_names":3,"comments":3,"pivot_tables":0},"unopened":[],"bounds":{"document_bytes":16777216,"sheet_cells":100000,"rows_first":2000,"rows_last":500,"rows_between":2000,"halvings":0,"cell_chars":16384,"cell_head_chars":4096},"cells_cut":0,"cells_raw":0,"read":"whole","date_system":"1900"}

{"sheet":"DEMANDE","index":0,"n_rows":147,"n_cols":10,"rows_kept":147,"cut":false,"hidden":true,"merged":[[0,0,0,7],[109,2,109,5],[44,7,46,7],[111,2,111,5],[76,0,76,7],[77,0,88,7],[54,0,54,7],[62,0,62,7],[63,0,73,7],[94,1,94,7],[43,2,43,3],[2,0,2,7],[1,2,1,5],[14,5,14,6],[4,1,4,2],[6,1,6,2],[8,1,8,2],[114,0,114,7],[10,1,10,2],[16,5,16,6],[38,1,38,3],[39,6,39,7],[26,1,26,3],[25,0,25,7],[42,0,42,7],[45,2,45,3],[46,2,46,3],[22,1,22,6],[39,0,39,3],[40,0,40,3],[122,0,122,7],[146,3,146,4],[48,2,48,3],[49,2,49,3],[50,2,50,3],[145,3,145,4],[47,7,51,7],[99,6,99,7],[97,1,97,7],[100,1,100,7],[103,1,103,7],[90,0,90,7],[47,2,47,3]]}
["Demande d'aide financière au Fonds d'intervention pour le développement du secteur agroalimentaire (FIDSA)"]
[null,null,"Formulaire demande individuelle"]
["Renseignements sur le demandeur et son représentant"]
[]
["Nom de l'entreprise",null,null,null,"Statut",null,null,null,null,1]
[]
["Répondant",null,null,null,"Production principale",null,null,null,null,1]
[]
["Adresse",null,null,null,"Présence de relève de moins de 45 ans au sein de l'entreprise"]
[null,null,null,null,null,null,null,null,null,1]
["Ville"]
[null,null,null,null,"Formation complétée et reconnue en agriculture"]
["MRC",null,null,null,null,null,null,null,null,1]
[null,null,null,null,null,null,null,null,null,1]
["Code postal",null,null,null,"Téléphone"]
[]
["Numéro d'identification ministériel (NIM)",null,null,null,"Courriel"]
[]
["Lien foncier avec l'emplacement du projet",null,null,null,null,null,null,null,null,1]
[]
["Municipalité où se déroule le projet",null,null,null,"Matricule du lot *"]
[null,null,null,null,"* seulement pour des aménagements réalisés sur un terrain dont le demandeur n'est pas propriétaire"]
["Titre du projet"]
[]
[]
["Liste des investissements prévus"]
["Investissements","Mesure",null,null,"Coût","Aide financière potentielle","Date \nde début","Date \nde fin"]
[null,null,null,null,null,{"$f":"MIN((E28*(IF(J28=3,60%,(IF(J28=4,30%,50%))))),(VLOOKUP(J28,LISTES!$A$14:$G$24,7,FALSE)))","v":0},null,null,null,1]
[null,null,null,null,null,{"$f":"MIN((E29*(IF(J29=3,60%,(IF(J29=4,30%,50%))))),(VLOOKUP(J29,LISTES!$A$14:$G$24,7,FALSE)))","v":0},null,null,null,1]
[null,null,null,null,null,{"$f":"MIN((E30*(IF(J30=3,60%,(IF(J30=4,30%,50%))))),(VLOOKUP(J30,LISTES!$A$14:$G$24,7,FALSE)))","v":0},null,null,null,1]
[null,null,null,null,null,{"$f":"MIN((E31*(IF(J31=3,60%,(IF(J31=4,30%,50%))))),(VLOOKUP(J31,LISTES!$A$14:$G$24,7,FALSE)))","v":0},null,null,null,1]
[null,null,null,null,null,{"$f":"MIN((E32*(IF(J32=3,60%,(IF(J32=4,30%,50%))))),(VLOOKUP(J32,LISTES!$A$14:$G$24,7,FALSE)))","v":0},null,null,null,1]
[null,null,null,null,null,{"$f":"MIN((E33*(IF(J33=3,60%,(IF(J33=4,30%,50%))))),(VLOOKUP(J33,LISTES!$A$14:$G$24,7,FALSE)))","v":0},null,null,null,1]
[null,null,null,null,null,{"$f":"MIN((E34*(IF(J34=3,60%,(IF(J34=4,30%,50%))))),(VLOOKUP(J34,LISTES!$A$14:$G$24,7,FALSE)))","v":0},null,null,null,1]
[null,null,null,null,null,{"$f":"MIN((E35*(IF(J35=3,60%,(IF(J35=4,30%,50%))))),(VLOOKUP(J35,LISTES!$A$14:$G$24,7,FALSE)))","v":0},null,null,null,1]
[null,null,null,null,null,{"$f":"MIN((E36*(IF(J36=3,60%,(IF(J36=4,30%,50%))))),(VLOOKUP(J36,LISTES!$A$14:$G$24,7,FALSE)))","v":0},null,null,null,1]
[null,null,null,null,null,{"$f":"MIN((E37*(IF(J37=3,60%,(IF(J37=4,30%,50%))))),(VLOOKUP(J37,LISTES!$A$14:$G$24,7,FALSE)))","v":0},null,null,null,1]
[null,null,null,null,null,{"$f":"E38*(IF(J38=3,60%,(IF(J38=4,30%,50%))))","v":0},null,null,null,1]
["Total",null,null,null,{"$f":"SUM(E28:E38)","v":0},{"$f":"MIN(50000,(SUM(F28:F38)))","v":0}]
["Frais de gestion (15 % du montant d'aide versée multiplié par un taux d'aide de 50 %)",null,null,null,{"$f":"MIN((F39*15%),50000-F39)","v":0},{"$f":"MIN((F39*15%*50%),50000-F39)","v":0}]
["Aide maximale par projet de 50 000 $",null,null,null,null,{"$f":"MIN((F39+F40),50000)","v":0}]
[]
["Financement du projet (excluant les frais de gestion)"]
["Besoin de financement",null,"Organismes et programmes",null,"Statut du financement",{"$f":"E39","v":0},"Proportion","Cumul d'aide"]
["Aide financière FIDSA",null,null,null,null,{"$f":"F39","v":0},{"$f":"IFERROR(F45/F$44,\"\")","v":""},{"$f":"SUM(G45:G47)","v":0}]
["Autre aide financière",null,null,null,null,null,{"$f":"IFERROR(F46/F$44,\"\")","v":""}]
["Autre aide financière",null,null,null,null,null,""]
["Prime à l'établissement/Aide au démarrage",null,null,null,null,null,"",{"$f":"SUM(G48:G52)","v":0}]
["Emprunt",null,null,null,null,null,""]
["Emprunt",null,null,null,null,null,""]
["Autre",null,null,null,null,null,""]
["Mise de fonds de l'entreprise/promoteur",null,null,null,null,null,""]
[null,null,null,null,null,{"$f":"SUM(F45:F52)","v":0},{"$f":"SUM(G45:G52)","v":0},{"$f":"SUM(H45:H51)","v":0}]
[]
["Choisir d'un à trois objectifs de votre projet qui sont en lien avec la planification stratégique 2023-2027 du secteur agroalimentaire"]
[]
["Objectif 1",null,null,null,null,null,null,null,null,1]
[]
["Objectif 2",null,null,null,null,null,null,null,null,1]
[]
["Objectif 3",null,null,null,null,null,null,null,null,1]
[]
["Entreprise (brève description des promoteurs, volumes et types de productions, activités de transformation, mise en marché, etc.)"]
[]
[]
[]
[]
[]
[]
[]
[]
[]
[]
[]
[]
[]
["Projet (problématique, objectifs poursuivis, résultats attendus, etc.)"]
[]
[]
[]
[]
[]
[]
[]
[]
[]
[]
[]
[]
[]
["Estimation des effets de votre projet sur la santé financière de votre entreprise"]
["Chiffres d'affaires de votre entreprise dans vos derniers états financiers"]
[]
["Revenus annuels supplémentaires générés par le projet ",null,null,null,null,null,{"$f":"IF(F94=\"\",\"\",IF(F92=\"\",\"\",(F94/F92)))","v":""}]
["Principaux postes de revenus impactés  :"]
[]
["Dépenses annuelles supplémentaires générées par le projet",null,null,null,null,null,{"$f":"IF(F97=\"\",\"\",IF(F92=\"\",\"\",(F97/F92)))","v":""}]
["Principaux postes de dépenses impactés  :"]
[]
["Économies annuelles générées par le projet",null,null,null,null,null,{"$f":"IF(F100=\"\",\"\",IF(F92=\"\",\"\",(F100/F92)))","v":""},{"$f":"IF(G100=\"\",\"\",IF(G95=\"\",\"\",(G100/G95)))","v":""}]
["Principaux postes de dépenses impactés  :"]
[]
["Est-ce que ce projet vous fera économiser du temps?",null,null,null,null,"Si oui, combien d'heures par année environ?  ",null,null,null,1]
["De quelle façon?"]
[]
["Montant du projet financé par emprunt",null,null,null,null,"Marge brute annuelle dégagée par votre projet :",{"$f":"F94-F97+F100","v":0}]
[]
["Durée du prêt en années 1",null,null,null,null,"Marge brute du projet / chiffre d'affaires de l'entreprise : ",{"$f":"IFERROR(G106/F92,\"\")","v":""}]
["1. Inscrire la durée de vie utile si aucun prêt n'est lié au projet"]
["Taux d'intérêt sur emprunt",null,"Solde de trésorerie annuel lié au projet 2 :",null,null,null,{"$f":"IFERROR(F94-F97+F100-B112,\"\")","v":""}]
[null,null,null,null,null,"2. Marge brute du projet - remboursement annuel sur la partie financée"]
["Remboursements annuels liés au projet",{"$f":"IFERROR(-(PMT(B110/12,B108*12,B106))*12,\"\")","v":""},"Rendement du projet à la fin de l'amortissement 3 :",null,null,null,{"$f":"IFERROR((FV((0)/12,B108*12,-G110/12))/F53,\"\")","v":""}]
[null,null,null,null,null,"3. Valeur des soldes de trésorerie cumulés sur la durée du projet / Coût total du projet"]
[]
["Documents à joindre à votre demande "]
[" → États financiers comptables ou formulaire T2042 de votre déclaration fiscale dans le cas d'un individu;"]
[" → Soumission pour équipement, matériel ou étude d'une valeur de plus de 2 000 $;"]
[" → Plan d'affaires à jour pour un projet touchant la mesure relève;"]
[" → La version complétée du formulaire en format Excel;"]
[" → Une copie signée de votre demande en version pdf ou format image (jpeg ou autre);"]
[" → Veuillez noter que des documents supplémentaires pourraient vous être exigés au besoin."]
[]
["Engagement du demandeur et signature"]
[]
["Je certifie que les renseignements inscrits dans le formulaire et dans tous les documents fournis sont vrais, complets et exacts."]
[]
["Je comprends que la présente demande ne me garantit pas l’obtention d’une aide financière pour mon projet et que cette aide est conditionnelle à l’acceptation"]
["du projet par le comité de gestion de l’entente sectorielle sous réserve des disponibilités budgétaires."]
[]
["Je consens à ce que les renseignements demandés et recueillis dans le contexte de ma demande financière soient\n partagés avec les organismes partenaires "]
["membres du comité de gestion et du comité de recommandations de l’entente sectorielle."]
[]
["Je consens à ce que les partenaires impliqués (FADQ, institution financière, UPA ou autre) communiquent au personnel du MAPAQ des informations relatives"]
["à mon entreprise et pouvant être utiles ou nécessaires à l'analyse de mon projet."]
[]
["Je reconnais que mon projet est conforme aux lois ou aux règlements applicables et en vigueur, notamment en ce qui concerne la salubrité, l'innocuité des "]
["aliments et la sécurité, la protection du territoire agricole ainsi que l’environnement."]
[]
["Je certifie que je suis mandaté(e) pour signer cette demande d'aide financière et que je peux en faire la preuve sur demande."]
[]
[]
[{"$f":"IF(B7=\"\",\"\",B7)","v":""}]
["Prénom et nom en lettres moulées"]
[]
[]
[]
["Signature du demandeur",null,null,"Date"]

{"sheet":"ANALYSE","index":1,"n_rows":198,"n_cols":15,"rows_kept":198,"cut":false,"hidden":true,"merged":[[186,2,186,3],[187,1,187,3],[188,0,188,3],[190,2,190,3],[26,15,26,17],[39,15,39,17],[180,1,180,2],[180,6,180,7],[101,0,101,8],[55,0,58,8],[93,0,96,8],[68,0,68,1],[69,0,69,1],[63,0,63,8],[64,2,64,3],[66,2,66,3],[24,0,24,8],[25,5,25,8],[25,0,25,4],[0,0,0,8],[6,4,6,5],[4,4,4,5],[6,6,6,8],[11,0,11,8],[10,0,10,8],[4,6,4,8],[5,6,5,8],[156,5,156,8],[103,6,103,8],[170,1,170,2],[177,1,177,2],[177,6,177,7],[173,1,173,2],[151,0,154,8],[104,6,115,8],[148,0,148,8],[165,0,168,8],[117,6,117,8],[140,0,143,8],[129,6,129,8],[64,0,64,1],[65,8,67,8],[73,2,73,3],[73,0,73,1],[69,2,69,3],[70,2,70,3],[71,2,71,3],[72,0,72,1],[65,0,65,1],[66,0,66,1],[67,0,67,1],[67,2,67,3],[68,2,68,3],[70,0,70,1],[71,0,71,1],[196,0,196,3],[197,0,197,3],[189,1,189,3],[191,2,191,3],[192,0,192,3],[193,0,193,3],[194,1,194,3],[195,0,195,3]]}
["Formulaire d'analyse de projet"]
[]
["Titre du projet: ",{"$f":"IF(DEMANDE!B23=\"\",\"\",DEMANDE!B23)","v":""}]
[]
["Nom de l'entreprise",{"$f":"IF(DEMANDE!B5=\"\",\"\",DEMANDE!B5)","v":""},null,null,"Numéro de projet : "]
["Répondant",{"$f":"IF(DEMANDE!B7=\"\",\"\",DEMANDE!B7)","v":""},null,null,null,"Date de réception du projet: "]
["Adresse",{"$f":"IF(DEMANDE!B9=\"\",\"\",DEMANDE!B9)","v":""},null,null,"Répondant MAPAQ :"]
["Ville",{"$f":"IF(DEMANDE!B11=\"\",\"\",DEMANDE!B11)","v":""}]
["Téléphone",{"$f":"IF(DEMANDE!F15=\"\",\"\",DEMANDE!F15)","v":""}]
[]
["Admissibilité de la demande et du promoteur"]
[]
["Entreprise enregistrée au MAPAQ (détient un NIM)",null,null,null,null,null,null,null,null,null,null,null,null,null,1]
[]
["Projet localisé sur le territoire de la Gaspésie ou des Îles-de-la-Madeleine",null,null,null,null,null,null,null,null,null,null,null,null,null,1]
[]
["L'entreprise est propriétaire de la parcelle sur laquelle se fera le projet ou détient un bail",null,null,null,null,null,null,null,null,null,null,null,null,null,1]
[]
["Promoteur considéré comme une relève avec plan d'affaires annexé à la demande",null,null,null,null,null,null,null,null,null,null,null,null,null,1]
[]
["Au moins un investissement présenté dans la demande est admissible à une aide",null,null,null,null,null,null,null,null,null,null,null,null,null,1]
[]
["Présences de soumissions pour les dépenses de plus de 5 000 $ "]
[null,null,null,null,null,null,null,null,null,null,null,null,null,null,1]
["Investissements prévus"]
["Demande du client",null,null,null,null,"Lettre d'offre"]
["Investissements","Mesures choisies par le client","Coût prévue","Aide financière","Échance prévue par le client","Mesures proposées","Coûts totaux","Coût admissible","Aide financière"]
[{"$f":"IF(DEMANDE!A28=\"\",\"\",DEMANDE!A28)","v":""},{"$f":"IF(A28=\"\",\"\",IFERROR(VLOOKUP(N28,LISTES!$A$14:$B$24,2),\"\"))","v":""},{"$f":"DEMANDE!E28","v":0},{"$f":"DEMANDE!F28","v":0},{"$f":"IF(DEMANDE!H28=\"\",\"\",DEMANDE!H28)","v":""},null,null,null,{"$f":"MIN(MIN(50000,(H28*(IF(O28=3,60%,(IF(O28=4,30%,50%)))))),VLOOKUP(O28,LISTES!$A$14:$H$25,7))","v":0},null,null,null,null,{"$f":"DEMANDE!J28","v":1},1]
[{"$f":"IF(DEMANDE!A29=\"\",\"\",DEMANDE!A29)","v":""},{"$f":"IF(A29=\"\",\"\",IFERROR(VLOOKUP(N29,LISTES!$A$14:$B$24,2),\"\"))","v":""},{"$f":"DEMANDE!E29","v":0},{"$f":"DEMANDE!F29","v":0},{"$f":"IF(DEMANDE!H29=\"\",\"\",DEMANDE!H29)","v":""},null,null,null,{"$f":"MIN((MIN(MIN(50000,(H29*(IF(O29=3,60%,(IF(O29=4,30%,50%)))))),VLOOKUP(O29,LISTES!$A$14:$H$25,7))),50000-I28)","v":0},null,null,null,null,{"$f":"DEMANDE!J29","v":1},1]
[{"$f":"IF(DEMANDE!A30=\"\",\"\",DEMANDE!A30)","v":""},{"$f":"IF(A30=\"\",\"\",IFERROR(VLOOKUP(N30,LISTES!$A$14:$B$24,2),\"\"))","v":""},{"$f":"DEMANDE!E30","v":0},{"$f":"DEMANDE!F30","v":0},{"$f":"IF(DEMANDE!H30=\"\",\"\",DEMANDE!H30)","v":""},null,null,null,{"$f":"MIN((MIN(MIN(50000,(H30*(IF(O30=3,60%,(IF(O30=4,30%,50%)))))),VLOOKUP(O30,LISTES!$A$14:$H$25,7))),50000-I29-I28)","v":0},null,null,null,null,{"$f":"DEMANDE!J30","v":1},1]
[{"$f":"IF(DEMANDE!A31=\"\",\"\",DEMANDE!A31)","v":""},{"$f":"IF(A31=\"\",\"\",IFERROR(VLOOKUP(N31,LISTES!$A$14:$B$24,2),\"\"))","v":""},{"$f":"DEMANDE!E31","v":0},{"$f":"DEMANDE!F31","v":0},{"$f":"IF(DEMANDE!H31=\"\",\"\",DEMANDE!H31)","v":""},null,null,null,{"$f":"MIN((MIN(MIN(50000,(H31*(IF(O31=3,60%,(IF(O31=4,30%,50%)))))),VLOOKUP(O31,LISTES!$A$14:$H$25,7))),50000-I30-I29-I28)","v":0},null,null,null,null,{"$f":"DEMANDE!J31","v":1},1]
[{"$f":"IF(DEMANDE!A32=\"\",\"\",DEMANDE!A32)","v":""},{"$f":"IF(A32=\"\",\"\",IFERROR(VLOOKUP(N32,LISTES!$A$14:$B$24,2),\"\"))","v":""},{"$f":"DEMANDE!E32","v":0},{"$f":"DEMANDE!F32","v":0},{"$f":"IF(DEMANDE!H32=\"\",\"\",DEMANDE!H32)","v":""},null,null,null,{"$f":"MIN((MIN(MIN(50000,(H32*(IF(O32=3,60%,(IF(O32=4,30%,50%)))))),VLOOKUP(O32,LISTES!$A$14:$H$25,7))),50000-I31-I30-I29-I28)","v":0},null,null,null,null,{"$f":"DEMANDE!J32","v":1},1]
[{"$f":"IF(DEMANDE!A33=\"\",\"\",DEMANDE!A33)","v":""},{"$f":"IF(A33=\"\",\"\",IFERROR(VLOOKUP(N33,LISTES!$A$14:$B$24,2),\"\"))","v":""},{"$f":"DEMANDE!E33","v":0},{"$f":"DEMANDE!F33","v":0},{"$f":"IF(DEMANDE!H33=\"\",\"\",DEMANDE!H33)","v":""},null,null,null,{"$f":"MIN((MIN(MIN(50000,(H33*(IF(O33=3,60%,(IF(O33=4,30%,50%)))))),VLOOKUP(O33,LISTES!$A$14:$H$25,7))),50000-I32-I31-I30-I29-I28)","v":0},null,null,null,null,{"$f":"DEMANDE!J33","v":1},1]
[{"$f":"IF(DEMANDE!A34=\"\",\"\",DEMANDE!A34)","v":""},{"$f":"IF(A34=\"\",\"\",IFERROR(VLOOKUP(N34,LISTES!$A$14:$B$24,2),\"\"))","v":""},{"$f":"DEMANDE!E34","v":0},{"$f":"DEMANDE!F34","v":0},{"$f":"IF(DEMANDE!H34=\"\",\"\",DEMANDE!H34)","v":""},null,null,null,{"$f":"MIN((MIN(MIN(50000,(H34*(IF(O34=3,60%,(IF(O34=4,30%,50%)))))),VLOOKUP(O34,LISTES!$A$14:$H$25,7))),50000-I33-I32-I31-I30-I29-I28)","v":0},null,null,null,null,{"$f":"DEMANDE!J34","v":1},1]
[{"$f":"IF(DEMANDE!A35=\"\",\"\",DEMANDE!A35)","v":""},{"$f":"IF(A35=\"\",\"\",IFERROR(VLOOKUP(N35,LISTES!$A$14:$B$24,2),\"\"))","v":""},{"$f":"DEMANDE!E35","v":0},{"$f":"DEMANDE!F35","v":0},{"$f":"IF(DEMANDE!H35=\"\",\"\",DEMANDE!H35)","v":""},null,null,null,{"$f":"MIN((MIN(MIN(50000,(H35*(IF(O35=3,60%,(IF(O35=4,30%,50%)))))),VLOOKUP(O35,LISTES!$A$14:$H$25,7))),50000-I34-I33-I32-I31-I30-I29-I28)","v":0},null,null,null,null,{"$f":"DEMANDE!J35","v":1},1]
[{"$f":"IF(DEMANDE!A36=\"\",\"\",DEMANDE!A36)","v":""},{"$f":"IF(A36=\"\",\"\",IFERROR(VLOOKUP(N36,LISTES!$A$14:$B$24,2),\"\"))","v":""},{"$f":"DEMANDE!E36","v":0},{"$f":"DEMANDE!F36","v":0},{"$f":"IF(DEMANDE!H36=\"\",\"\",DEMANDE!H36)","v":""},null,null,null,{"$f":"MIN((MIN(MIN(50000,(H36*(IF(O36=3,60%,(IF(O36=4,30%,50%)))))),VLOOKUP(O36,LISTES!$A$14:$H$25,7))),50000-I35-I34-I33-I32-I31-I30-I29-I28)","v":0},null,null,null,null,{"$f":"DEMANDE!J36","v":1},1]
[{"$f":"IF(DEMANDE!A37=\"\",\"\",DEMANDE!A37)","v":""},{"$f":"IF(A37=\"\",\"\",IFERROR(VLOOKUP(N37,LISTES!$A$14:$B$24,2),\"\"))","v":""},{"$f":"DEMANDE!E37","v":0},{"$f":"DEMANDE!F37","v":0},{"$f":"IF(DEMANDE!H37=\"\",\"\",DEMANDE!H37)","v":""},null,null,null,{"$f":"MIN((MIN(MIN(50000,(H37*(IF(O37=3,60%,(IF(O37=4,30%,50%)))))),VLOOKUP(O37,LISTES!$A$14:$H$25,7))),50000-I36-I35-I34-I33-I32-I31-I30-I29-I28)","v":0},null,null,null,null,{"$f":"DEMANDE!J37","v":1},1]
[{"$f":"IF(DEMANDE!A38=\"\",\"\",DEMANDE!A38)","v":""},{"$f":"IF(A38=\"\",\"\",IFERROR(VLOOKUP(N38,LISTES!$A$14:$B$24,2),\"\"))","v":""},{"$f":"DEMANDE!E38","v":0},{"$f":"DEMANDE!F38","v":0},{"$f":"IF(DEMANDE!H38=\"\",\"\",DEMANDE!H38)","v":""},null,null,null,{"$f":"MIN((MIN(MIN(50000,(H38*(IF(O38=3,60%,(IF(O38=4,30%,50%)))))),VLOOKUP(O38,LISTES!$A$14:$H$25,7))),50000-I37-I36-I35-I34-I33-I32-I31-I30-I29-I28)","v":0},null,null,null,null,{"$f":"DEMANDE!J38","v":1},1]
[null,null,{"$f":"DEMANDE!E39","v":0},{"$f":"DEMANDE!F39","v":0},null,null,{"$f":"SUM(G28:G38)","v":0},{"$f":"SUM(H28:H38)","v":0},{"$f":"MIN(50000,(SUM(I28:I38)))","v":0}]
["Frais de gestion (15 %)",null,{"$f":"DEMANDE!E40","v":0},{"$f":"DEMANDE!F40","v":0},null,null,null,null,{"$f":"MIN((I39*0.15*0.5),(50000-I39))","v":0}]
[null,null,null,{"$f":"D39+D40","v":0},null,null,null,null,{"$f":"I39+I40","v":0}]
[]
["1.A - Développement et consolidation","1.A - CUMA ","1.B - Animaux","1.B - Apiculture","1.B - Pâturages","1.C - Santé des sols","1.D - Relève","1.E - Remise culture","4 - Transformation"]
[{"$f":"LISTES!H15","v":0},{"$f":"LISTES!H16","v":0},{"$f":"LISTES!H17","v":0},{"$f":"LISTES!H18","v":0},{"$f":"LISTES!H19","v":0},{"$f":"LISTES!H20","v":0},{"$f":"LISTES!H22","v":0},{"$f":"LISTES!H23","v":0},{"$f":"LISTES!H24","v":0}]
[50000,50000,25000,10000,25000,50000,50000,10000,50000]
[]
["Les estimations de coûts semblent raisonnables relativement à la nature des investissements prévus.",null,null,null,null,null,{"$f":"(O47-1)","v":0},"/ 5",null,null,null,null,null,null,1]
[]
["Les investissements semblent appropriés compte tenu de la nature et de la situation de l'entreprise.",null,null,null,null,null,{"$f":"(O49-1)","v":0},"/ 5",null,null,null,null,null,null,1]
[]
["Les échéances semblent réalistes.",null,null,{"$f":"(O51-1)","v":0},"/ 5",null,null,null,null,null,null,null,null,null,1]
[]
["Appréciation globale de l'analyse pour la partie Investissements.",null,null,null,{"$f":"(O53-1)","v":0},"/ 5",null,null,null,null,null,null,null,null,1]
[]
["Commentaires de l'analyste"]
[]
[]
[]
[]
[]
["Pointage d’Investissements:",{"$f":"G47+G49+D51+E53","v":0},"/20",{"$f":"B61/20","v":0}]
[]
[]
["Financement"]
["Besoin de financement",null,"Organisme",null,"Statut","Prévu","Proposé","Proportion","Cumul d'aide"]
["Aide financière FIDSA",null,null,null,"Recommandé",{"$f":"DEMANDE!F45","v":0},{"$f":"I39","v":0},{"$f":"IFERROR(G66/$G$71,\"\")","v":""},{"$f":"SUM(H66:H69)","v":0},null,null,null,null,null,4]
["Autre aide financière",null,null,null,null,{"$f":"DEMANDE!F46","v":0},null,{"$f":"IFERROR(G67/$G$71,\"\")","v":""},null,null,null,null,null,null,1]
["Autre aide financière",null,null,null,null,{"$f":"DEMANDE!F47","v":0},null,"",null,null,null,null,null,null,1]
["Prime à l'établissement/Aide au démarrage",null,null,null,null,{"$f":"DEMANDE!F48","v":0},null,"",null,null,null,null,null,null,1]
["Emprunt",null,null,null,null,{"$f":"DEMANDE!F49","v":0},null,"",null,null,null,null,null,null,1]
["Emprunt",null,null,null,null,{"$f":"DEMANDE!F50","v":0},null,"",null,null,null,null,null,null,1]
["Autre",null,null,null,null,{"$f":"DEMANDE!F51","v":0},null,"",null,null,null,null,null,null,1]
["Mise de fonds de l'entreprise/promoteur",null,null,null,"Confirmé",{"$f":"DEMANDE!F52","v":0},null,"",null,null,null,null,null,null,4]
[{"$f":"IF(A39=\"\",\"\",A39)","v":""},null,null,null,null,{"$f":"SUM(F66:F73)","v":0},{"$f":"SUM(G66:G73)","v":0},{"$f":"SUM(H66:H73)","v":0},{"$f":"IFERROR(I66+#REF!,\"\")","v":""}]
[null,null,null,null,null,"Total des investissements (G36) :",{"$f":"G39","v":0}]
[]
["Proportion du financement recommandé ou confirmé",null,{"$f":"SUMIF($O$63:$O$70,4,$H$63:$H$70)","v":0},null,"Financement recommandé(FIDSA) ou déjà confirmé:",null,null,{"$f":"IF(C77>0.9,5,IF(C77>0.7,4,IF(C77>0.5,3,IF(C77>0.3,2,IF(C77>0,1,0)))))","v":0},"/ 5"]
["Proportion du financement en cours d'analyse",null,{"$f":"SUMIF(O66:O73,3,H66:H73)","v":0},null,"État des démarches de financement (En analyse ou confirmé)",null,null,{"$f":"IF(C77+C78>0.9,5,IF(C77+C78>0.7,4,IF(C77+C78>0.5,3,IF(C77+C78>0.3,2,IF(C77+C78>0,1,0)))))","v":0},"/ 5"]
["Proportion du financement non demandé",null,{"$f":"SUMIF($O$63:$O$70,2,$H$63:$H$70)+SUMIF($O$63:$O$70,1,$H$63:$H$70)","v":0}]
[]
["Le financement du projet exploite bien les diverses possibilités offertes dans le secteur (subventions et prêts garantis)",null,null,null,null,null,null,{"$f":"(O81-1)","v":0},"/ 5",null,null,null,null,null,1]
[]
["Le financement du projet est bien structuré et ne constitue pas un risque à court terme pour les liquidités de l'entreprise ",null,null,null,null,null,null,{"$f":"(O83-1)","v":0},"/ 5",null,null,null,null,null,1]
[]
["Importance de la mise de fonds relativement au chiffre d'affaires",null,null,{"$f":"IFERROR(G73/DEMANDE!F92,\"\")","v":""},null,null,"Coût de l'emprunt (frais & intérêts)  / Coût du projet   ",{"$f":"IFERROR(((-(CUMIPMT(DEMANDE!B110/12,DEMANDE!B108*12,(G70+G71),1,DEMANDE!B108*12,0))+800)/G74),\"\")","v":""}]
[]
["Le promoteur a des solutions à sa portée en cas de dépassement de coûts (capacité d'injecter des fonds, d'augmenter, emprunt, etc.)",null,null,null,null,null,null,{"$f":"(O87)-1","v":0},"/ 5",null,null,null,null,null,1]
[]
["Appréciation globale de l'analyse pour la partie Financement.",null,null,null,{"$f":"(O89-1)","v":0},"/ 5",null,null,null,null,null,null,null,null,1]
[]
[]
[]
["Commentaires de l'analyste"]
[]
[]
[]
[]
[]
["Pointage de Financement:",{"$f":"IFERROR(H77+H78+H81+H87+H83+E89,0)","v":0},"/30",{"$f":"IFERROR(B99/30,\"\")","v":0}]
[]
[]
["Effets du projet sur la santé financière de l'entreprise"]
[]
["Chiffres d'affaires des derniers états financiers",null,{"$f":"DEMANDE!F92","v":0},null,null,null,"Explications des résultats présentés"]
[]
["Revenus annuels supplémentaires générés",null,{"$f":"DEMANDE!F94","v":0},{"$f":"IFERROR(C106/C$104,0)","v":0}]
["De quelle façon?",{"$f":"IF(DEMANDE!B95=\"\",\"\",DEMANDE!B95)","v":""}]
[]
["Dépenses annuels supplémentaires générées",null,{"$f":"DEMANDE!F97","v":0},{"$f":"IFERROR(C109/C$104,0)","v":0}]
["De quelle façon?",{"$f":"IF(DEMANDE!B98=\"\",\"\",DEMANDE!B98)","v":""}]
[]
["Économies annuels  générées",null,{"$f":"DEMANDE!F100","v":0},{"$f":"IFERROR(C112/C$104,0)","v":0}]
["De quelle façon?",{"$f":"IF(DEMANDE!B101=\"\",\"\",DEMANDE!B101)","v":""}]
[]
["Marge brute dégagée par le projet :",null,{"$f":"C106-C109+C112","v":0},{"$f":"IFERROR(C115/C$104,0)","v":0}]
[""]
["Solde de trésorerie annuel lié au projet 2 :",null,{"$f":"IFERROR(C115-B130-DEMANDE!B112,\"\")","v":""},{"$f":"IFERROR(C117/G39,0%)","v":0}]
["2. Marge brute du projet - remboursement annuel sur la partie financée",null,null,null,null,null,"Résumé des états financiers"]
[]
["Rendement du projet à la fin de l'amortissement 3 :",null,null,{"$f":"IFERROR((FV((0%)/12,DEMANDE!B108*12,-C117/12,,1))/ANALYSE!G39,0)","v":0},null,"Produits"]
["3. Valeur des soldes de trésorerie cumulés sur la durée du projet / Coût total du projet",null,null,null,null,"Charges variables"]
[null,null,null,null,null,"Charges fixes"]
["Ce projet améliore-il l'efficacité du travail?",null,{"$f":"IF(DEMANDE!J103=1,\"\",IF(DEMANDE!J103=2,\"Oui\",\"Non\"))","v":""},{"$f":"DEMANDE!G103","v":0},"h économisées","Bénéfice net"]
["De quelle façon?",{"$f":"IF(DEMANDE!B104=\"\",\"\",DEMANDE!B104)","v":""},null,null,null,"Actifs ct"]
[null,null,null,null,null,"Actifs lt"]
["L'augmentation des revenus est intéressante et réaliste",null,null,{"$f":"IF(D106>0.2,5,IF(D106>0.1,4,IF(D106>0.05,3,IF(D106>0,2,IF(D106<0.001,1,0)))))","v":1},"/5","Passifs ct",null,null,null,null,null,null,null,null,6]
[null,null,null,null,null,"Passifs lt"]
["La diminution des dépenses est intéressante et réaliste",null,null,{"$f":"IF(D112-D109>0.2,5,IF(D112-D109>0.1,4,IF(D112-D109>0.05,3,IF(D112-D109>0,2,IF(D112-D109<0.001,1,0)))))","v":1},"/5","Capitaux propres",null,null,null,null,null,null,null,null,2]
[]
["Le projet contribue à améliorer l'efficacité du travail",null,null,{"$f":"IF(ANALYSE!D123>99.9,5,IF(ANALYSE!D123>49.9,4,IF(ANALYSE!D123>24.9,3,IF(ANALYSE!D123>0,2,1))))","v":1},"/5",null,"Ratios",null,null,null,null,null,null,null,2]
[null,null,null,null,null,"Marge bénéficiaire (BN/Pr)",{"$f":"IFERROR(G123/G120,\"\")","v":""},{"$f":"IFERROR(H123/H120,\"\")","v":""},{"$f":"IFERROR(I123/I120,\"\")","v":""}]
["La marge brute est significative par rapport au chiffre d'affaires",null,null,{"$f":"IF(D115>0.1,5,IF(D115>0.05,4,IF(D115>0.025,3,IF(D115>0,2,IF(D115<0.001,1,0)))))","v":1},"/5","Endettement (P/A)",{"$f":"IFERROR((G126+G127)/(G124+G125),\"\")","v":""},{"$f":"IFERROR((H126+H127)/(H124+H125),\"\")","v":""},{"$f":"IFERROR((I126+I127)/(I124+I125),\"\")","v":""},null,null,null,null,null,6]
[null,null,null,null,null,"Liquidité générale (Act/Pct)",{"$f":"IFERROR((G124/G126),\"\")","v":""},{"$f":"IFERROR((H124/H126),\"\")","v":""},{"$f":"IFERROR((I124/I126),\"\")","v":""}]
["Le solde de trésorerie annuel est positif et conséquent avec le projet",null,null,{"$f":"IF(D117>0.1,5,IF(D117>0.05,4,IF(D117>0.025,3,IF(D117>0,2,IF(D117<0.001,1,0)))))","v":1},"/5","Rendement actifs  (BN/A)",{"$f":"IFERROR((G123/(G124+G125)),\"\")","v":""},{"$f":"IFERROR((H123/(H124+H125)),\"\")","v":""},{"$f":"IFERROR((I123/(I124+I125)),\"\")","v":""},null,null,null,null,null,6]
[null,null,null,null,null,"Rendement  capitaux (BN/CP)",{"$f":"IFERROR((G123/G128),\"\")","v":""},{"$f":"IFERROR((H123/H128),\"\")","v":""},{"$f":"IFERROR((I123/I128),\"\")","v":""}]
["Le projet présente un rendement intéressant",null,null,{"$f":"IF(D120>0.1,5,IF(D120>0.05,4,IF(D120>0.025,3,IF(D120>0,2,IF(D120<0.001,1,0)))))","v":1},"/5",null,null,null,null,null,null,null,null,null,6]
[]
["Appréciation globale de l'analyse pour la partie Effet sur la santé financière de l'entreprise",null,null,null,null,null,{"$f":"(O138-1)","v":0},"/ 5",null,null,null,null,null,null,1]
[]
["Commentaires de l'analyste"]
[]
[]
[]
[]
[]
["Pointage d’Effets du projet:",{"$f":"D126+D128+D130+D132+D134+D136+G138","v":6},"/35",{"$f":"B146/35","v":0.17142857142857143}]
[]
[]
["Recommandations"]
[]
["Commentaires de l'analyste"]
[]
[]
[]
[]
[]
["Pointage Évaluation du projet",{"$f":"B61+B99+B146","v":6},"/85",{"$f":"B157/85","v":7.0588235294117646E-2},null,"Liens du projet avec les objectifs de l'entente spécifique régionale"]
[]
["Pointage Comité d'analyse",null,"/15",{"$f":"B159/15","v":0},null,{"$f":"IF(VLOOKUP(DEMANDE!J57,LISTES!$A$28:$B$35,2)=0,\"\",VLOOKUP(DEMANDE!J57,LISTES!$A$28:$B$35,2))","v":""}]
[]
["Pointage total",{"$f":"B157+B159","v":6},"/100",{"$f":"B161/100","v":0.06},null,{"$f":"IF(VLOOKUP(DEMANDE!J59,LISTES!$A$28:$B$35,2)=0,\"\",VLOOKUP(DEMANDE!J59,LISTES!$A$28:$B$35,2))","v":""}]
[]
["Recommandation",null,null,null,null,{"$f":"IF(VLOOKUP(DEMANDE!J61,LISTES!$A$28:$B$35,2)=0,\"\",VLOOKUP(DEMANDE!J61,LISTES!$A$28:$B$35,2))","v":""},null,null,null,null,null,null,null,null,1]
[]
["Commentaires ou conditions particulières"]
[]
[]
[]
[]
[]
["Analyste :",{"$f":"IF(G7=\"\",\"\",G7)","v":""}]
[]
[]
["Signature"]
[]
[]
[]
["Comité d'analyse"]
[]
[]
["Signatures"]
[]
[]
[]
[]
["À l'usage du MAPAQ"]
["Demande 1","Demandeur : ",{"$f":"DEMANDE!B5","v":0}]
["Titre du projet:",{"$f":"DEMANDE!B23","v":0}]
["Mesure :  "]
["Localisation : ",{"$f":"DEMANDE!B21","v":0}]
["$ demandée: ","$ recommandée: ","$ total du projet : "]
[{"$f":"DEMANDE!F41","v":0},{"$f":"ANALYSE!I41","v":0},{"$f":"DEMANDE!E39","v":0}]
["Description du projet :"]
["."]
["Analyse ",{"$f":"ANALYSE!G7","v":0}]
["."]
["Recommandation (s) du comité :"]
["$"]

{"sheet":"Formulaire_réclamation","index":2,"n_rows":83,"n_cols":19,"rows_kept":83,"cut":false,"hidden":false,"merged":[[6,1,6,2],[30,6,30,9],[0,0,0,9],[3,1,3,2],[3,5,3,6],[4,1,4,2],[4,5,4,6],[11,0,11,3],[11,4,11,6],[1,0,1,9],[5,1,5,2],[12,11,12,12],[76,2,76,4],[79,8,79,9],[12,15,12,16],[24,0,26,0],[27,3,27,5],[28,4,28,5],[30,0,30,5],[12,13,12,14]]}
["Formulaire de réclamation pour le FIDSA"]
["Compléter uniquement les sections en jaune"]
[]
["Nom de l'entreprise",null,null,null,"Numéro de projet : "]
["Répondant",null,null,null,"Répondant MAPAQ :"]
["Courriel"]
["Adresse",null,null,null,"Réclamation",1,{"$f":"SUMIF(I33:I68,1,S33:S68)+(SUMIF(I33:I68,1,S33:S68)*0.15*0.5)","v":0}]
["Ville",null,null,null,"Réclamation",2,{"$f":"SUMIF(I33:I68,2,S33:S68)+(SUMIF(I33:I68,2,S33:S68)*0.15*0.5)","v":0}]
["Téléphone",null,null,null,"Réclamation",3,{"$f":"SUMIF(I33:I68,3,S33:S68)+(SUMIF(I33:I68,3,S33:S68)*0.15*0.5)","v":0}]
[null,null,null,null,null,null,{"$f":"G7+G8+G9","v":0}]
[]
["Coût prévu et aide financière estimée",null,null,null,"Coût et aide du projet réalisé"]
["No associé à l'investissement initial","Description des dépenses figurant dans la lettre d'offre","Coût d'acquisition prévue","Aide financière demandée","Description des dépenses réalisés dans le projet","Coût d'acquisition réelle","Aide financière demandée",null,null,null,null,"Réclamation 1",null,"Réclamation 2",null,"Réclamation 3"]
[1,null,null,null,null,{"$f":"SUMIF($A$33:$A$68,A14,$G$33:$G$68)","v":0},{"$f":"SUMIF($A$33:$A$68,A14,$S$33:$S$68)","v":0},null,null,null,null,{"$f":"SUMIFS($G$33:$G$68,$A$33:$A$68,$A14,$I$33:$I$68,1)","v":0},{"$f":"L14*(IF(DEMANDE!J28=3,60%,(IF(DEMANDE!J28=4,30%,50%))))","v":0},{"$f":"SUMIFS($G$33:$G$68,$A$33:$A$68,$A14,$I$33:$I$68,2)","v":0},{"$f":"N14*(IF(DEMANDE!L28=3,60%,(IF(DEMANDE!L28=4,30%,50%))))","v":0},{"$f":"SUMIFS($G$33:$G$68,$A$33:$A$68,$A14,$I$33:$I$68,3)","v":0},{"$f":"P14*(IF(DEMANDE!N28=3,60%,(IF(DEMANDE!N28=4,30%,50%))))","v":0}]
[2,null,null,null,null,{"$f":"SUMIF($A$33:$A$68,A15,$G$33:$G$68)","v":0},{"$f":"SUMIF($A$33:$A$68,A15,$S$33:$S$68)","v":0},null,null,null,null,0,{"$f":"L15*(IF(DEMANDE!J29=3,60%,(IF(DEMANDE!J29=4,30%,50%))))","v":0},0,{"$f":"N15*(IF(DEMANDE!L29=3,60%,(IF(DEMANDE!L29=4,30%,50%))))","v":0},0,{"$f":"P15*(IF(DEMANDE!N29=3,60%,(IF(DEMANDE!N29=4,30%,50%))))","v":0}]
[3,null,null,null,null,0,0,null,null,null,null,0,{"$f":"L16*(IF(DEMANDE!J30=3,60%,(IF(DEMANDE!J30=4,30%,50%))))","v":0},0,{"$f":"N16*(IF(DEMANDE!L30=3,60%,(IF(DEMANDE!L30=4,30%,50%))))","v":0},0,{"$f":"P16*(IF(DEMANDE!N30=3,60%,(IF(DEMANDE!N30=4,30%,50%))))","v":0}]
[4,null,null,null,null,0,0,null,null,null,null,0,{"$f":"L17*(IF(DEMANDE!J31=3,60%,(IF(DEMANDE!J31=4,30%,50%))))","v":0},0,{"$f":"N17*(IF(DEMANDE!L31=3,60%,(IF(DEMANDE!L31=4,30%,50%))))","v":0},0,{"$f":"P17*(IF(DEMANDE!N31=3,60%,(IF(DEMANDE!N31=4,30%,50%))))","v":0}]
[5,null,null,null,null,0,0,null,null,null,null,0,{"$f":"L18*(IF(DEMANDE!J32=3,60%,(IF(DEMANDE!J32=4,30%,50%))))","v":0},0,{"$f":"N18*(IF(DEMANDE!L32=3,60%,(IF(DEMANDE!L32=4,30%,50%))))","v":0},0,{"$f":"P18*(IF(DEMANDE!N32=3,60%,(IF(DEMANDE!N32=4,30%,50%))))","v":0}]
[6,null,null,null,null,0,0,null,null,null,null,0,{"$f":"L19*(IF(DEMANDE!J33=3,60%,(IF(DEMANDE!J33=4,30%,50%))))","v":0},0,{"$f":"N19*(IF(DEMANDE!L33=3,60%,(IF(DEMANDE!L33=4,30%,50%))))","v":0},0,{"$f":"P19*(IF(DEMANDE!N33=3,60%,(IF(DEMANDE!N33=4,30%,50%))))","v":0}]
[7,null,null,null,null,0,0,null,null,null,null,0,{"$f":"L20*(IF(DEMANDE!J34=3,60%,(IF(DEMANDE!J34=4,30%,50%))))","v":0},0,{"$f":"N20*(IF(DEMANDE!L34=3,60%,(IF(DEMANDE!L34=4,30%,50%))))","v":0},0,{"$f":"P20*(IF(DEMANDE!N34=3,60%,(IF(DEMANDE!N34=4,30%,50%))))","v":0}]
[8,null,null,null,null,0,0,null,null,null,null,0,{"$f":"L21*(IF(DEMANDE!J35=3,60%,(IF(DEMANDE!J35=4,30%,50%))))","v":0},0,{"$f":"N21*(IF(DEMANDE!L35=3,60%,(IF(DEMANDE!L35=4,30%,50%))))","v":0},0,{"$f":"P21*(IF(DEMANDE!N35=3,60%,(IF(DEMANDE!N35=4,30%,50%))))","v":0}]
[9,null,null,null,null,0,0,null,null,null,null,0,{"$f":"L22*(IF(DEMANDE!J36=3,60%,(IF(DEMANDE!J36=4,30%,50%))))","v":0},0,{"$f":"N22*(IF(DEMANDE!L36=3,60%,(IF(DEMANDE!L36=4,30%,50%))))","v":0},0,{"$f":"P22*(IF(DEMANDE!N36=3,60%,(IF(DEMANDE!N36=4,30%,50%))))","v":0}]
[10,null,null,null,null,0,0,null,null,null,null,0,{"$f":"L23*(IF(DEMANDE!J37=3,60%,(IF(DEMANDE!J37=4,30%,50%))))","v":0},0,{"$f":"N23*(IF(DEMANDE!L37=3,60%,(IF(DEMANDE!L37=4,30%,50%))))","v":0},0,{"$f":"P23*(IF(DEMANDE!N37=3,60%,(IF(DEMANDE!N37=4,30%,50%))))","v":0}]
[11,null,null,null,null,0,0,null,null,null,null,0,{"$f":"L24*(IF(DEMANDE!J38=3,60%,(IF(DEMANDE!J38=4,30%,50%))))","v":0},0,{"$f":"N24*(IF(DEMANDE!L38=3,60%,(IF(DEMANDE!L38=4,30%,50%))))","v":0},0,{"$f":"P24*(IF(DEMANDE!N38=3,60%,(IF(DEMANDE!N38=4,30%,50%))))","v":0}]
[null,"Coût du projet et aide financière",{"$f":"SUM(C14:C24)","v":0},{"$f":"MIN(SUM(D14:D24),50000)","v":0},"Coût du projet et aide financière",{"$f":"SUM(F14:F24)","v":0},{"$f":"MIN(50000,SUM(G14:G24))","v":0},null,null,null,null,{"$f":"SUM(L14:L24)","v":0},0,0,0,0,0]
[null,"Frais de gestion (15 %)",{"$f":"D25*0.15","v":0},{"$f":"MAX(MIN((50000-D25),(C26*0.5)),0)","v":0},"Frais de gestion (15 %)",{"$f":"0.15*SUM(G14:G24)","v":0},{"$f":"MIN((F26*50%),(50000-G25))","v":0}]
[null,null,{"$f":"C25+C26","v":0},{"$f":"MIN(50000,D25+D26)","v":0},null,{"$f":"F25+F26","v":0},{"$f":"MIN(50000,G25+G26)","v":0}]
[null,null,null,"Solde ou dépassement (en négatif) de l'engagement initial :",null,null,{"$f":"D27-G27","v":0}]
[null,null,null,null,"Dépassement de l'engagement initial (en %) :",null,{"$f":"IFERROR(IF(G25>D25,-(G28/D25),0),\"\")","v":0}]
[]
["Liste des pièces justificatives et liens avec les investissements dans le tableau du haut",null,null,null,null,null,"À l'usage du MAPAQ"]
["No associé à l'investissement initial","Type de dépenses","Date","No de facture","Fournisseur","Montants avant taxes","Montants admissibles avant taxes","% Aide","Séquence de réclamations","Date de réclamation",null,null,null,null,null,null,null,null,"Aide"]
[null,null,null,null,null,null,null,null,null,null,null,null,null,null,null,null,null,null,{"$f":"G33*H33","v":0}]
[null,null,null,null,null,null,null,null,null,null,null,null,null,null,null,null,null,null,0]
[null,null,null,null,null,null,null,null,null,null,null,null,null,null,null,null,null,null,0]
[null,null,null,null,null,null,null,null,null,null,null,null,null,null,null,null,null,null,0]
[null,null,null,null,null,null,null,null,null,null,null,null,null,null,null,null,null,null,0]
[null,null,null,null,null,null,null,null,null,null,null,null,null,null,null,null,null,null,0]
[null,null,null,null,null,null,null,null,null,null,null,null,null,null,null,null,null,null,0]
[null,null,null,null,null,null,null,null,null,null,null,null,null,null,null,null,null,null,0]
[null,null,null,null,null,null,null,null,null,null,null,null,null,null,null,null,null,null,0]
[null,null,null,null,null,null,null,null,null,null,null,null,null,null,null,null,null,null,0]
[null,null,null,null,null,null,null,null,null,null,null,null,null,null,null,null,null,null,{"$f":"G43*H43","v":0}]
[null,null,null,null,null,null,null,null,null,null,null,null,null,null,null,null,null,null,0]
[null,null,null,null,null,null,null,null,null,null,null,null,null,null,null,null,null,null,0]
[null,null,null,null,null,null,null,null,null,null,null,null,null,null,null,null,null,null,0]
[null,null,null,null,null,null,null,null,null,null,null,null,null,null,null,null,null,null,0]
[null,null,null,null,null,null,null,null,null,null,null,null,null,null,null,null,null,null,0]
[null,null,null,null,null,null,null,null,null,null,null,null,null,null,null,null,null,null,0]
[null,null,null,null,null,null,null,null,null,null,null,null,null,null,null,null,null,null,0]
[null,null,null,null,null,null,null,null,null,null,null,null,null,null,null,null,null,null,0]
[null,null,null,null,null,null,null,null,null,null,null,null,null,null,null,null,null,null,0]
[null,null,null,null,null,null,null,null,null,null,null,null,null,null,null,null,null,null,0]
[null,null,null,null,null,null,null,null,null,null,null,null,null,null,null,null,null,null,0]
[null,null,null,null,null,null,null,null,null,null,null,null,null,null,null,null,null,null,0]
[null,null,null,null,null,null,null,null,null,null,null,null,null,null,null,null,null,null,0]
[null,null,null,null,null,null,null,null,null,null,null,null,null,null,null,null,null,null,0]
[null,null,null,null,null,null,null,null,null,null,null,null,null,null,null,null,null,null,0]
[null,null,null,null,null,null,null,null,null,null,null,null,null,null,null,null,null,null,0]
[null,null,null,null,null,null,null,null,null,null,null,null,null,null,null,null,null,null,0]
[null,null,null,null,null,null,null,null,null,null,null,null,null,null,null,null,null,null,0]
[null,null,null,null,null,null,null,null,null,null,null,null,null,null,null,null,null,null,0]
[null,null,null,null,null,null,null,null,null,null,null,null,null,null,null,null,null,null,0]
[null,null,null,null,null,null,null,null,null,null,null,null,null,null,null,null,null,null,0]
[null,null,null,null,null,null,null,null,null,null,null,null,null,null,null,null,null,null,0]
[null,null,null,null,null,null,null,null,null,null,null,null,null,null,null,null,null,null,0]
[null,null,null,null,null,null,null,null,null,null,null,null,null,null,null,null,null,null,0]
[null,null,null,null,null,null,null,null,null,null,null,null,null,null,null,null,null,null,0]
[]
["- J’atteste que les montants inscrits correspondent à la somme, avant taxes, réellement engagée et payée aux fins du Projet accepté dans le cadre du FIDSA."]
["- Je joins au formulaire une copie des factures ainsi que l'ensemble des pièces justificatives exigées et j’en certifie l’authenticité."]
["- J’ai informé le ministère de l'Agriculture, des Pêcheries et de l'Alimention de toute somme d’argent reçue ou à recevoir d’un autre ministère ou organisme "]
["gouvernemental, liée au présent projet pour lequel je reçois une aide financière."]
[]
["Bilan de mon projet: Mon projet a permis de réduire le stress financier et la charge de travail liés à mon entreprise",null,null,null,null,null,null,null,null,null,1]
[]
[null,"Prénom et nom en lettres moulées :",{"$f":"IF(DEMANDE!B7=\"\",\"\",DEMANDE!B7)","v":""}]
[]
[]
[null,"Signature du bénéficiaire ou de son représentant : ",null,null,null,null,"Date : "]
[]
[]
["Retourner le fichier Excel, une copie signée et une copie des factures à l'adresse suivante: ",null,null,null,"gaspesie-iles.aidefinanciere@mapaq.gouv.qc.ca"]

{"sheet":"Exemple","index":3,"n_rows":80,"n_cols":18,"rows_kept":80,"cut":false,"hidden":false,"merged":[[5,1,5,2],[0,0,0,10],[3,1,3,2],[3,5,3,6],[4,1,4,2],[4,5,4,6],[1,0,1,10],[6,1,6,2],[7,1,7,2],[11,0,11,3],[11,4,11,6],[12,12,12,13],[76,2,76,4],[79,9,79,10],[12,16,12,17],[24,0,26,0],[27,3,27,5],[28,4,28,5],[30,0,30,5],[30,6,30,10],[12,14,12,15]]}
["Formulaire de réclamation pour le FIDSA"]
["Compléter uniquement les sections en jaune"]
[]
["Nom de l'entreprise","Ferme AA",null,null,"Numéro de projet : "]
["Répondant","Diane B.",null,null,"Répondant MAPAQ :"]
["Adresse","rang 2"]
["Ville","Caplan",null,null,"Réclamation",1,{"$f":"SUMIF(J33:J68,1,I33:I68)+(SUMIF(J33:J68,1,I33:I68)*0.15*0.5)","v":29238.924999999999}]
["Téléphone","123-456-7899",null,null,"Réclamation",2,{"$f":"SUMIF(J33:J68,2,I33:I68)+(SUMIF(J33:J68,2,I33:I68)*0.15*0.5)","v":0}]
[null,null,null,null,"Réclamation",3,{"$f":"SUMIF(J33:J68,3,I33:I68)+(SUMIF(J33:J68,3,I33:I68)*0.15*0.5)","v":0}]
[null,null,null,null,null,null,{"$f":"G7+G8+G9","v":29238.924999999999}]
[]
["Coût prévu et aide financière estimée",null,null,null,"Coût et aide du projet réalisé"]
["No associé à l'investissement initial","Investissements prévus dans la lettre d'offre","Coût d'acquisition prévue","Aide financière demandée","Investissements réalisés dans le projet","Coût d'acquisition réelle","Aide financière demandée",null,null,null,null,null,"Réclamation 1",null,"Réclamation 2",null,"Réclamation 3"]
[1,"Agrandissement 35x60",70000,35000,"Agrandissement 30 x 50 '",{"$f":"SUMIF($A$33:$A$68,A14,$G$33:$G$68)","v":44000},{"$f":"SUMIF($A$33:$A$68,A14,$I$33:$I$68)","v":22000},null,null,null,null,null,{"$f":"SUMIFS($G$33:$G$68,$A$33:$A$68,$A14,$J$33:$J$68,1)","v":44000},{"$f":"M14*(IF(DEMANDE!J28=3,60%,(IF(DEMANDE!J28=4,30%,50%))))","v":22000},{"$f":"SUMIFS($G$33:$G$68,$A$33:$A$68,$A14,$J$33:$J$68,2)","v":0},{"$f":"O14*(IF(DEMANDE!L28=3,60%,(IF(DEMANDE!L28=4,30%,50%))))","v":0},{"$f":"SUMIFS($G$33:$G$68,$A$33:$A$68,$A14,$J$33:$J$68,3)","v":0},{"$f":"Q14*(IF(DEMANDE!N28=3,60%,(IF(DEMANDE!N28=4,30%,50%))))","v":0}]
[2,"50 agnelles",20000,6000,"Achat de 35 agnelles",{"$f":"SUMIF($A$33:$A$68,A15,$G$33:$G$68)","v":13500},{"$f":"SUMIF($A$33:$A$68,A15,$I$33:$I$68)","v":4050},null,null,null,null,null,13500,{"$f":"M15*(IF(DEMANDE!J29=3,60%,(IF(DEMANDE!J29=4,30%,50%))))","v":6750},0,{"$f":"O15*(IF(DEMANDE!L29=3,60%,(IF(DEMANDE!L29=4,30%,50%))))","v":0},0,{"$f":"Q15*(IF(DEMANDE!N29=3,60%,(IF(DEMANDE!N29=4,30%,50%))))","v":0}]
[3,"Cage et balance",3000,1500,"Cage et balance",2298,1149,null,null,null,null,null,2298,{"$f":"M16*(IF(DEMANDE!J30=3,60%,(IF(DEMANDE!J30=4,30%,50%))))","v":1149},0,{"$f":"O16*(IF(DEMANDE!L30=3,60%,(IF(DEMANDE!L30=4,30%,50%))))","v":0},0,{"$f":"Q16*(IF(DEMANDE!N30=3,60%,(IF(DEMANDE!N30=4,30%,50%))))","v":0}]
[4,null,null,null,null,0,0,null,null,null,null,null,0,{"$f":"M17*(IF(DEMANDE!J31=3,60%,(IF(DEMANDE!J31=4,30%,50%))))","v":0},0,{"$f":"O17*(IF(DEMANDE!L31=3,60%,(IF(DEMANDE!L31=4,30%,50%))))","v":0},0,{"$f":"Q17*(IF(DEMANDE!N31=3,60%,(IF(DEMANDE!N31=4,30%,50%))))","v":0}]
[5,null,null,null,null,0,0,null,null,null,null,null,0,{"$f":"M18*(IF(DEMANDE!J32=3,60%,(IF(DEMANDE!J32=4,30%,50%))))","v":0},0,{"$f":"O18*(IF(DEMANDE!L32=3,60%,(IF(DEMANDE!L32=4,30%,50%))))","v":0},0,{"$f":"Q18*(IF(DEMANDE!N32=3,60%,(IF(DEMANDE!N32=4,30%,50%))))","v":0}]
[6,null,null,null,null,0,0,null,null,null,null,null,0,{"$f":"M19*(IF(DEMANDE!J33=3,60%,(IF(DEMANDE!J33=4,30%,50%))))","v":0},0,{"$f":"O19*(IF(DEMANDE!L33=3,60%,(IF(DEMANDE!L33=4,30%,50%))))","v":0},0,{"$f":"Q19*(IF(DEMANDE!N33=3,60%,(IF(DEMANDE!N33=4,30%,50%))))","v":0}]
[7,null,null,null,null,0,0,null,null,null,null,null,0,{"$f":"M20*(IF(DEMANDE!J34=3,60%,(IF(DEMANDE!J34=4,30%,50%))))","v":0},0,{"$f":"O20*(IF(DEMANDE!L34=3,60%,(IF(DEMANDE!L34=4,30%,50%))))","v":0},0,{"$f":"Q20*(IF(DEMANDE!N34=3,60%,(IF(DEMANDE!N34=4,30%,50%))))","v":0}]
[8,null,null,null,null,0,0,null,null,null,null,null,0,{"$f":"M21*(IF(DEMANDE!J35=3,60%,(IF(DEMANDE!J35=4,30%,50%))))","v":0},0,{"$f":"O21*(IF(DEMANDE!L35=3,60%,(IF(DEMANDE!L35=4,30%,50%))))","v":0},0,{"$f":"Q21*(IF(DEMANDE!N35=3,60%,(IF(DEMANDE!N35=4,30%,50%))))","v":0}]
[9,null,null,null,null,0,0,null,null,null,null,null,0,{"$f":"M22*(IF(DEMANDE!J36=3,60%,(IF(DEMANDE!J36=4,30%,50%))))","v":0},0,{"$f":"O22*(IF(DEMANDE!L36=3,60%,(IF(DEMANDE!L36=4,30%,50%))))","v":0},0,{"$f":"Q22*(IF(DEMANDE!N36=3,60%,(IF(DEMANDE!N36=4,30%,50%))))","v":0}]
[10,null,null,null,null,0,0,null,null,null,null,null,0,{"$f":"M23*(IF(DEMANDE!J37=3,60%,(IF(DEMANDE!J37=4,30%,50%))))","v":0},0,{"$f":"O23*(IF(DEMANDE!L37=3,60%,(IF(DEMANDE!L37=4,30%,50%))))","v":0},0,{"$f":"Q23*(IF(DEMANDE!N37=3,60%,(IF(DEMANDE!N37=4,30%,50%))))","v":0}]
[11,null,null,null,null,0,0,null,null,null,null,null,0,{"$f":"M24*(IF(DEMANDE!J38=3,60%,(IF(DEMANDE!J38=4,30%,50%))))","v":0},0,{"$f":"O24*(IF(DEMANDE!L38=3,60%,(IF(DEMANDE!L38=4,30%,50%))))","v":0},0,{"$f":"Q24*(IF(DEMANDE!N38=3,60%,(IF(DEMANDE!N38=4,30%,50%))))","v":0}]
[null,"Coût du projet et aide financière",{"$f":"SUM(C14:C24)","v":93000},{"$f":"SUM(D14:D24)","v":42500},"Coût du projet et aide financière",{"$f":"SUM(F14:F24)","v":59798},{"$f":"SUM(G14:G24)","v":27199},null,null,null,null,null,{"$f":"SUM(M14:M24)","v":59798},29899,0,0,0,0]
[null,"Frais de gestion (15 %)",{"$f":"D25*0.15","v":6375},{"$f":"MIN((50000-D25),(C26*0.5))","v":3187.5},"Frais de gestion (15 %)",{"$f":"0.15*SUM(G14:G24)","v":4079.85},{"$f":"F26*50%","v":2039.925}]
[null,null,{"$f":"C25+C26","v":99375},{"$f":"MIN(50000,D25+D26)","v":45687.5},null,{"$f":"F25+F26","v":63877.85},{"$f":"G25+G26","v":29238.924999999999}]
[null,null,null,"Solde ou dépassement (en négatif) de l'engagement initial :",null,null,{"$f":"D27-G27","v":16448.575000000001}]
[null,null,null,null,"Dépassement de l'engagement initial (en %) :",null,{"$f":"IFERROR(IF(G25>D25,-(G28/D25),0),\"\")","v":0}]
[]
["Liste des pièces justificatives et liens avec les investissements dans le tableau du haut",null,null,null,null,null,"À l'usage du MAPAQ"]
["No associé à l'investissement initial","Type de dépenses","Date","No de facture","Fournisseur","Montants avant taxes","Montants admissibles avant taxes","% Aide",null,"Séquence de réclamations","Date de réclamation"]
[1,"Fondation","2023-07-01",1,"Beton Régional",12500,12500,0.5,{"$f":"G33*H33","v":6250},1,"2023-09-15"]
[1,"Murs","2023-08-04",2,"Leon Girard",8000,8000,0.5,{"$f":"G34*H34","v":4000},1,"2023-09-15"]
[1,"Fermes de toît","2023-07-08",3,"Leon Girard",12000,12000,0.5,6000,1,"2023-09-15"]
[1,"Tôle","2023-07-14",4,"Bruno Laplante",4000,4000,0.5,2000,1,"2023-09-15"]
[1,"Rêvetement ext. et int.","2023-07-20",5,"Home Software",7500,7500,0.5,3750,1,"2023-09-15"]
[2,"20 agnelles","2023-08-15",6,"Bergerie La Grande Butte",8000,8000,0.3,2400,1,"2023-09-15"]
[2,"15 agnelles","2023-09-01",7,"Bergerie Opti Rêve",5500,5500,0.3,1650,1,"2023-09-15"]
[3,"Cage et balance","2023-07-29",8,"Jack Elevage",2298,2298,0.5,1149,1,"2023-09-15"]
[]
[]
[null,null,null,null,null,null,null,null,0]
[null,null,null,null,null,null,null,null,0]
[null,null,null,null,null,null,null,null,0]
[null,null,null,null,null,null,null,null,0]
[null,null,null,null,null,null,null,null,0]
[null,null,null,null,null,null,null,null,0]
[null,null,null,null,null,null,null,null,0]
[null,null,null,null,null,null,null,null,0]
[null,null,null,null,null,null,null,null,0]
[null,null,null,null,null,null,null,null,0]
[null,null,null,null,null,null,null,null,0]
[null,null,null,null,null,null,null,null,0]
[null,null,null,null,null,null,null,null,0]
[null,null,null,null,null,null,null,null,0]
[null,null,null,null,null,null,null,null,0]
[null,null,null,null,null,null,null,null,0]
[null,null,null,null,null,null,null,null,0]
[null,null,null,null,null,null,null,null,0]
[null,null,null,null,null,null,null,null,0]
[null,null,null,null,null,null,null,null,0]
[null,null,null,null,null,null,null,null,0]
[null,null,null,null,null,null,null,null,0]
[null,null,null,null,null,null,null,null,0]
[null,null,null,null,null,null,null,null,0]
[null,null,null,null,null,null,null,null,0]
[null,null,null,null,null,null,null,null,0]
[]
["- J’atteste que les montants inscrits correspondent à la somme, avant taxes, réellement engagée et payée aux fins du Projet accepté dans le cadre du FIDSA."]
["- Je joins au formulaire une copie de chaque facture qui y est présentée ainsi que l'ensemble des pièces justificatives exigées et j’en certifie l’authenticité."]
["- J’ai informé le ministère de l'Agriculture, des Pêcheries et de l'Alimention de toute somme d’argent reçue ou à recevoir d’un autre ministère ou organisme "]
["gouvernemental, liée au présent projet pour lequel je reçois une aide financière."]
[]
["Bilan de mon projet: Mon projet a permis de réduire le stress financier et la charge de travail liés à mon entreprise",null,null,null,null,null,null,null,null,null,null,1]
[]
[null,"Prénom et nom en lettres moulées :",{"$f":"IF(DEMANDE!B7=\"\",\"\",DEMANDE!B7)","v":""}]
[]
[]
[null,"Signature du bénéficiaire ou de son représentant : ",null,null,null,null,"Date : "]

{"sheet":"LISTES","index":4,"n_rows":144,"n_cols":9,"rows_kept":144,"cut":false,"hidden":true,"merged":[]}
[]
[]
[null,"Démarrage (entreprise qui n'a pas encore de ventes)"]
[null,"Démarrage (entreprise en production depuis moins de 5 ans)"]
[null,"Transfert (au moins un nouveau propriétaire depuis moins de 5 ans)"]
[null,"Expansion (Production en croissance)"]
[null,"Consolidation (Production stable)"]
[]
[]
[null,"Au moins un propriétaire de moins de 45 ans, établi depuis moins de 5 ans"]
[null,"Au moins un propriétaire de moins de 45 ans"]
[null,"Tous les propriétaires ont plus de 45 ans"]
[]
[1]
[2,"1.A - Dév. entreprises : Aide - individuel",null,null,null,null,50000,{"$f":"SUMIF(ANALYSE!$O$28:$O$38,A15,ANALYSE!$I$28:$I$38)","v":0},{"$f":"IF(H15>G15,\"Oui\",\"Non\")","v":"Non"}]
[3,"1.A - Dév. entreprises : Aide - CUMA",null,null,null,null,50000,{"$f":"SUMIF(ANALYSE!$O$28:$O$38,A16,ANALYSE!$I$28:$I$38)","v":0},{"$f":"IF(H16>G16,\"Oui\",\"Non\")","v":"Non"}]
[4,"1.B - Dév. entreprises : Prod. animales durables - Achat d'animaux",null,null,null,null,25000,{"$f":"SUMIF(ANALYSE!$O$28:$O$38,A17,ANALYSE!$I$28:$I$38)","v":0},"Non"]
[5,"1.B - Dév. entreprises : Prod. animales durables - Amé. durables",null,null,null,null,25000,{"$f":"SUMIF(ANALYSE!$O$28:$O$38,A18,ANALYSE!$I$28:$I$38)","v":0},"Non"]
[6,"1.B - Dév. entreprises : Prod. animales durables - Dév. apiculture",null,null,null,null,25000,{"$f":"SUMIF(ANALYSE!$O$28:$O$38,A19,ANALYSE!$I$28:$I$38)","v":0},"Non"]
[7,"1.C - Dév. entreprises : Amé. sols et C.C. - Drainage et nivellement",null,null,null,null,50000,{"$f":"SUMIF(ANALYSE!$O$28:$O$38,A20,ANALYSE!$I$28:$I$38)","v":0},"Non"]
[8,"1.C - Dév. Entreprises : Amé. sols et C.C. - Cultures de couverture",null,null,null,null,5000,{"$f":"SUMIF(ANALYSE!$O$28:$O$38,A21,ANALYSE!$I$28:$I$38)","v":0},"Non"]
[9,"1.D - Dév. Entreprises : Relève et établissement",null,null,null,null,50000,{"$f":"SUMIF(ANALYSE!$O$28:$O$38,A22,ANALYSE!$I$28:$I$38)","v":0},"Non"]
[10,"1.E - Dév. Entreprises : Remise en culture d'une friche agricole",null,null,null,null,25000,{"$f":"SUMIF(ANALYSE!$O$28:$O$38,A23,ANALYSE!$I$28:$I$38)","v":0},"Non"]
[11,"4 - Dév. activités de transformation",null,null,null,null,50000,{"$f":"SUMIF(ANALYSE!$O$28:$O$38,A24,ANALYSE!$I$28:$I$38)","v":0},"Non"]
[null,null,null,null,null,null,null,{"$f":"SUM(H15:H24)","v":0}]
[]
[]
[1]
[2,"1.1 Réduire le déficit de fertilité des sols"]
[3,"1.2 Soutenir les producteurs dans l’adoption de bonnes pratiques visant l’amélioration de la santé des sols et leur rendement"]
[4,"1.3 Soutenir le secteur et les entreprises dans les défis reliés à l’adaptation aux changements climatiques"]
[5,"3.3 Appuyer les entreprises dans leurs projets d’optimisation et de modernisation des infrastructures et équipements "]
[6,"3.6 Favoriser l’établissement de la relève et le transfert des entreprises existantes"]
[7,"4.2  Soutenir les initiatives visant l’amélioration de la performance des cheptels "]
[8,"5.3 Appuyer la transférabilité des fermes pour sécuriser le territoire agricole cultivé de la région"]
[]
[]
[]
[null,"Aucune formation reconnue"]
[null,"Niv. 3 - DEP en agriculture"]
[null,"Niv. 3 - AEC en agriculture"]
[null,"Niv. 3 - DEC non relié à l'agriculture"]
[null,"Niv. 2 - DEC connexe à l'agriculture"]
[null,"Niv. 2 - DEP & AEC en agriculture"]
[null,"Niv. 1 -DEC en agriculture"]
[null,"Niv. 1 - Baccalauréat en agriculture"]
[]
[null,"Non demandé"]
[null,"En analyse"]
[null,"Confirmé"]
[]
[]
[null,"Avignon"]
[null,"Bonaventure"]
[null,"Côte-de-Gaspé"]
[null,"Haute-Gaspésie"]
[null,"Rocher-Percé"]
[]
[]
[null,"Apiculture"]
[null,"Bovins de boucherie"]
[null,"Bovins laitiers"]
[null,"Caprins de boucherie"]
[null,"Caprins laitiers"]
[null,"Ovins"]
[null,"Autres prod. animales"]
[null,"---------------"]
[null,"Acériculture"]
[null,"Grandes cultures"]
[null,"Horticulture ornementale"]
[null,"Maraîchage diversifié"]
[null,"Pommes de terre"]
[null,"Production fourragère"]
[null,"Production fruitière"]
[null,"Produits forestiers non ligneux"]
[null,"Autres prod. végétales"]
[null,"---------------"]
[null,"Transformateur (+50 % produits régionaux)"]
[]
[1]
[2,"- de 30 %",1]
[3,"30 % & +",2]
[4,"50 % & +",3]
[5,"70 % & +",4]
[6,"90 % & +",5]
[]
[]
[]
[null,"Oui"]
[null,"Non"]
[]
[]
[null,"Faible"]
[null,"Moyen"]
[null,"Bon"]
[null,"Très bon"]
[null,"Excellent"]
[]
[]
[null,"Aucune"]
[null,"Peu"]
[null,"Quelques-unes"]
[null,"Plusieurs"]
[null,"Non problématique"]
[]
[]
[null,"< 0 %"]
[null,"0 - 5 %"]
[null,"5-10 %"]
[null,"10 - 20 %"]
[null,"> 20 %"]
[]
[]
[]
[null,"< 0 %"]
[null,"0 - 2,5 %"]
[null,"2,5 - 5 %"]
[null,"5 - 10 %"]
[null,"> 10 %"]
[]
[]
[]
[null,"Projet accepté tel que soumis"]
[null,"Projet accepté avec conditions"]
[null,"Projet accepté avec modifications"]
[null,"Projet refusé"]
[null,"Projet inadmissible"]
[]
[null,"Beaucoup"]
[null,"Moyennement"]
[null,"Peu"]
[null,"Pas du tout"]
[]
[]
[null,"Terrain ou immeuble qui est la propriété de l'entreprise, d'un de ses propriétaires ou du demandeur."]
[null,"Terrain ou immeuble avec bail enregistré ou publié (minimum de 5 ans). Nécessaire quand l'investissement admissible est > 10 000 $."]
[null,"Terrain ou immeuble avec bail (minimum de 5 ans ou mention renouvelable). Nécessaire quand l' investissement admissible est < 10 000$."]
[null,"Terrain ou immeuble avec bail à des fins commerciales, délivré par le ministère des Ressources naturelles et des Forêts ou par une MRC délégataire."]
[]
[]
[null,"Toutes les soumissions nécessaires sont présentes"]
[null,"Aucune soumission n'est nécessaire"]
[null,"Certaines soumissions sont manquantes"]
[null,"Toutes les soumissions sont manquantes"]

{"sheet":"INFOS","index":5,"n_rows":3,"n_cols":7,"rows_kept":3,"cut":false,"hidden":true,"merged":[]}
[]
[]
[null,null,{"$f":"DEMANDE!B5","v":0},{"$f":"DEMANDE!B7","v":0},{"$f":"DEMANDE!B9","v":0},{"$f":"DEMANDE!B11","v":0},{"$f":"DEMANDE!F15","v":0}]